bitfinex-derivatives/quotes_BNBF0:USTF0_20230901
["timestamp","ask_amount","ask_price","bid_price","bid_amount"]
[1693542397455,0.07536716,216.33,214.23,0.16972919]
[1693542427878,0.50244773,216.38,214.23,0.16972919]
[1693542428103,4.47783291,216.45,214.23,0.16972919]
[1693542428281,0.07535167,216.33,214.23,0.16972919]
[1693542430384,0.07535167,216.34,214.23,0.16972919]
[1693542445689,0.07535167,216.33,214.23,0.16972919]
[1693542446081,0.07535167,216.32,214.23,0.16972919]
[1693542447490,0.07535167,216.33,214.23,0.16972919]
[1693542454686,0.15070334,216.36,214.23,0.16972919]
[1693542454687,0.07535167,216.34,214.23,0.16972919]
[1693542455186,0.07535167,216.33,214.23,0.16972919]
[1693542456194,0.07535167,216.34,214.23,0.16972919]
[1693542458495,0.07535167,216.33,214.23,0.16972919]
[1693542476606,0.07535167,216.32,214.23,0.16972919]
[1693542510441,0.07535167,216.31,214.23,0.16972919]
[1693542511142,0.07535167,216.32,214.23,0.16972919]
[1693542511341,0.07535167,216.31,214.23,0.16972919]
[1693542585501,0.07535167,216.3,214.23,0.16972919]
[1693542585904,0.07535167,216.31,214.23,0.16972919]
[1693542586803,0.07535167,216.3,214.23,0.16972919]
[1693542595811,0.07535167,216.31,214.23,0.16972919]
[1693542604728,0.07535167,216.27,214.23,0.16972919]
[1693542604925,0.07535167,216.26,214.23,0.16972919]
[1693542605124,0.07535167,216.25,214.23,0.16972919]
[1693542605323,0.07535167,216.27,214.23,0.16972919]
[1693542606328,0.07535167,216.28,214.23,0.16972919]
[1693542607230,0.07535167,216.29,214.23,0.16972919]
[1693542608429,0.07535167,216.3,214.23,0.16972919]
[1693542610132,0.07535167,216.31,214.23,0.16972919]
[1693542610430,0.07535167,216.3,214.23,0.16972919]
[1693542611333,0.07535167,216.31,214.23,0.16972919]
[1693542614230,0.07535167,216.32,214.23,0.16972919]
[1693542614437,0.07535167,216.31,214.23,0.16972919]
[1693542616237,0.07535167,216.32,214.23,0.16972919]
[1693542618139,0.07535167,216.31,214.23,0.16972919]
[1693542621339,0.07535167,216.3,214.23,0.16972919]
[1693542625139,0.07535167,216.29,214.23,0.16972919]
[1693542628347,0.07535167,216.28,214.23,0.16972919]
[1693542631145,0.07535167,216.27,214.23,0.16972919]
[1693542634248,0.07535167,216.26,214.23,0.16972919]
[1693542637151,0.07535167,216.25,214.23,0.16972919]
[1693542638352,0.07535167,216.24,214.23,0.16972919]
[1693542639154,0.07535167,216.22,214.23,0.16972919]
[1693542642257,0.07535167,216.23,214.23,0.16972919]
[1693542645253,0.07535167,216.24,214.23,0.16972919]
[1693542645455,0.07535167,216.23,214.23,0.16972919]
[1693542646159,0.07535167,216.24,214.23,0.16972919]
[1693542649260,0.07535167,216.25,214.23,0.16972919]
[1693542653763,0.07535167,216.24,214.23,0.16972919]
[1693542655258,0.07535167,216.25,214.23,0.16972919]
[1693542662968,0.07535167,216.24,214.23,0.16972919]
[1693542664571,0.07535167,216.25,214.23,0.16972919]
[1693542669172,0.07535167,216.24,214.23,0.16972919]
[1693542669675,0.15070334,216.27,214.23,0.16972919]
[1693542669676,0.07535167,216.25,214.23,0.16972919]
[1693542669875,0.07535167,216.24,214.23,0.16972919]
[1693542677878,2.5117224,216.37,214.23,0.16972919]
[1693542678183,0.07527207,216.24,214.23,0.16972919]
[1693542687285,0.07527207,216.23,214.23,0.16972919]
[1693542688296,2.50906924,216.37,214.23,0.16972919]
[1693542688494,0.07532151,216.23,214.23,0.16972919]
[1693542693598,0.15064302,216.26,214.23,0.16972919]
[1693542693599,0.07532151,216.24,214.23,0.16972919]
[1693542698598,0.07532151,216.23,214.23,0.16972919]
[1693542758761,0.15064302,216.25,214.23,0.16972919]
[1693542758762,0.07532151,216.22,214.23,0.16972919]
[1693542760565,0.07532151,216.23,214.23,0.16972919]
[1693542760765,0.07532151,216.22,214.23,0.16972919]
[1693542761364,0.07532151,216.23,214.23,0.16972919]
[1693542761564,0.07532151,216.22,214.23,0.16972919]
[1693542761765,0.07532151,216.23,214.23,0.16972919]
[1693542767471,0.07532151,216.22,214.23,0.16972919]
[1693542769675,0.07532151,216.23,214.23,0.16972919]
[1693542783383,0.07532151,216.22,214.23,0.16972919]
[1693542783584,0.07532151,216.23,214.23,0.16972919]
[1693542784783,0.07532151,216.22,214.23,0.16972919]
[1693542785378,0.07532151,216.23,214.23,0.16972919]
[1693542785783,0.07532151,216.22,214.23,0.16972919]
[1693542801595,0.07532151,216.21,214.23,0.16972919]
[1693542805298,0.07532151,216.22,214.23,0.16972919]
[1693542808700,0.07532151,216.23,214.23,0.16972919]
[1693542821413,0.07532151,216.22,214.23,0.16972919]
[1693542821610,0.07532151,216.23,214.23,0.16972919]
[1693542822811,0.07532151,216.22,214.23,0.16972919]
[1693542824208,0.07532151,216.23,214.23,0.16972919]
[1693542824816,0.07532151,216.22,214.23,0.16972919]
[1693542827117,0.07532151,216.23,214.23,0.16972919]
[1693542845123,0.07532151,216.24,214.23,0.16972919]
[1693542852532,0.07532151,216.23,214.23,0.16972919]
[1693542854537,0.07532151,216.24,214.23,0.16972919]
[1693542855040,0.07532151,216.25,214.23,0.16972919]
[1693542855236,0.07532151,216.3,214.23,0.16972919]
[1693542855438,0.07532151,216.31,214.23,0.16972919]
[1693542855637,0.07532151,216.33,214.23,0.16972919]
[1693542856237,0.50214341,216.38,214.23,0.16972919]
[1693542856238,0.07532151,216.34,214.23,0.16972919]
[1693542856633,0.07532151,216.35,214.23,0.16972919]
[1693542857537,0.07532151,216.37,214.23,0.16972919]
[1693542861640,0.07532151,216.36,214.23,0.16972919]
[1693542862640,1.00428683,216.43,214.23,0.16972919]
[1693542862641,0.07532151,216.35,214.23,0.16972919]
[1693542864542,0.07532151,216.34,214.23,0.16972919]
[1693542865742,0.07532151,216.33,214.23,0.16972919]
[1693542867646,0.07532151,216.32,214.23,0.16972919]
[1693542869649,0.07532151,216.31,214.23,0.16972919]
[1693542869847,0.07532151,216.33,214.23,0.16972919]
[1693542870650,0.07532151,216.32,214.23,0.16972919]
[1693542871846,0.07532151,216.31,214.23,0.16972919]
[1693542873652,0.07532151,216.3,214.23,0.16972919]
[1693542874852,0.07532151,216.29,214.23,0.16972919]
[1693542877455,0.07532151,216.28,214.23,0.16972919]
[1693542878855,0.07532151,216.27,214.23,0.16972919]
[1693542880859,0.07532151,216.26,214.23,0.16972919]
[1693542881461,0.07532151,216.27,214.23,0.16972919]
[1693542881657,0.07532151,216.26,214.23,0.16972919]
[1693542883659,0.07532151,216.25,214.23,0.16972919]
[1693542885764,0.07532151,216.24,214.23,0.16972919]
[1693542886664,0.07532151,216.23,214.23,0.16972919]
[1693542887566,0.07532151,216.22,214.23,0.16972919]
[1693542888665,0.15064302,216.24,214.23,0.16972919]
[1693542888666,0.07532151,216.21,214.23,0.16972919]
[1693542889667,0.07532151,216.19,214.23,0.16972919]
[1693542891273,0.15064302,216.22,214.23,0.16972919]
[1693542891274,0.07532151,216.2,214.23,0.16972919]
[1693542893170,0.07532151,216.21,214.23,0.16972919]
[1693542895871,0.50214341,216.26,214.23,0.16972919]
[1693542895872,0.07532151,216.22,214.23,0.16972919]
[1693542898873,0.07532151,216.23,214.23,0.16972919]
[1693542899976,0.07532151,216.24,214.23,0.16972919]
[1693542901675,0.07532151,216.23,214.23,0.16972919]
[1693542902274,0.07532151,216.24,214.23,0.16972919]
[1693542903877,0.07532151,216.25,214.23,0.16972919]
[1693542904078,0.07532151,216.24,214.23,0.16972919]
[1693542904779,0.07532151,216.25,214.23,0.16972919]
[1693542905681,0.07532151,216.26,214.23,0.16972919]
[1693542906583,0.07532151,216.27,214.23,0.16972919]
[1693542907682,0.15064302,216.29,214.23,0.16972919]
[1693542907683,0.07532151,216.28,214.23,0.16972919]
[1693542908581,0.07532151,216.29,214.23,0.16972919]
[1693542909582,0.07532151,216.31,214.23,0.16972919]
[1693542910086,0.07532151,216.3,214.23,0.16972919]
[1693542910397,0.07532151,216.29,214.23,0.16972919]
[1693542910685,0.07532151,216.31,214.23,0.16972919]
[1693542911683,0.07532151,216.32,214.23,0.16972919]
[1693542931200,0.07532151,216.33,214.23,0.16972919]
[1693542933904,0.07532151,216.32,214.23,0.16972919]
[1693542943702,0.07532151,216.31,214.23,0.16972919]
[1693542944402,0.07532151,216.32,214.23,0.16972919]
[1693542944805,0.50214341,216.36,214.23,0.16972919]
[1693542944806,0.07532151,216.31,214.23,0.16972919]
[1693542947610,0.07532151,216.32,214.23,0.16972919]
[1693542948509,0.07532151,216.31,214.23,0.16972919]
[1693542957318,2.51071708,216.45,214.23,0.16972919]
[1693542957319,0.07532151,216.32,214.23,0.16972919]
[1693542993954,2.51071708,216.45,214.23,0.16972919]
[1693542994151,0.07536336,216.32,214.23,0.16972919]
[1693543006862,0.07536336,216.33,214.23,0.16972919]
[1693543007158,0.07536336,216.32,214.23,0.16972919]
[1693543012958,0.07536336,216.33,214.23,0.16972919]
[1693543014165,0.07536336,216.32,214.23,0.16972919]
[1693543030278,0.07536336,216.31,214.23,0.16972919]
[1693543031376,0.07536336,216.32,214.23,0.16972919]
[1693543033277,0.07536336,216.31,214.23,0.16972919]
[1693543033679,0.07536336,216.26,214.23,0.16972919]
[1693543033978,0.07536336,216.28,214.23,0.16972919]
[1693543034978,0.07536336,216.29,214.23,0.16972919]
[1693543035381,0.07536336,216.18,214.23,0.16972919]
[1693543035976,0.15072673,216.2,214.23,0.16972919]
[1693543035977,0.07536336,216.2,214.23,0.16972919]
[1693543036979,0.07536336,216.16,214.23,0.16972919]
[1693543037179,0.07536336,216.17,214.23,0.16972919]
[1693543037681,0.15072673,216.19,214.23,0.16972919]
[1693543037682,0.07536336,216.16,214.23,0.16972919]
[1693543037881,0.07536336,216.14,214.23,0.16972919]
[1693543038874,0.07536336,216.12,214.23,0.16972919]
[1693543040078,0.07536336,216.11,214.23,0.16972919]
[1693543040284,0.07536336,216.1,214.23,0.16972919]
[1693543040684,0.07536336,216.11,214.23,0.16972919]
[1693543040882,0.07536336,216.09,214.23,0.16972919]
[1693543041982,0.07536336,216.07,214.23,0.16972919]
[1693543042882,0.07536336,216.06,214.23,0.16972919]
[1693543043884,0.07536336,216.05,214.23,0.16972919]
[1693543044684,0.07536336,216.04,214.23,0.16972919]
[1693543044884,0.07536336,216.05,214.23,0.16972919]
[1693543045085,0.07536336,216.04,214.23,0.16972919]
[1693543045780,0.07536336,216.05,214.23,0.16972919]
[1693543048287,0.15072673,216.08,214.23,0.16972919]
[1693543048288,0.07536336,216.06,214.23,0.16972919]
[1693543053692,0.07536336,216.05,214.23,0.16972919]
[1693543057296,0.07536336,216.04,214.23,0.16972919]
[1693543058899,0.07536336,216.03,214.23,0.16972919]
[1693543060903,0.07536336,216.02,214.23,0.16972919]
[1693543062103,0.07536336,216.01,214.23,0.16972919]
[1693543062804,0.07536336,216.0,214.23,0.16972919]
[1693543063803,0.07536336,215.99,214.23,0.16972919]
[1693543063997,0.07536336,215.98,214.23,0.16972919]
[1693543064904,0.07536336,215.97,214.23,0.16972919]
[1693543065799,0.07536336,215.96,214.23,0.16972919]
[1693543066003,0.07536336,215.95,214.23,0.16972919]
[1693543066906,0.07536336,215.93,214.23,0.16972919]
[1693543067101,0.15072673,215.95,214.23,0.16972919]
[1693543067102,0.07536336,215.92,214.23,0.16972919]
[1693543067808,0.07536336,215.89,214.23,0.16972919]
[1693543068907,0.07536336,215.87,214.23,0.16972919]
[1693543070000,2.51211223,216.0,214.23,0.16972919]
[1693543070001,0.07536336,215.83,214.23,0.16972919]
[1693543083819,0.07536336,215.84,214.23,0.16972919]
[1693543084016,0.07536336,215.86,214.23,0.16972919]
[1693543084217,0.07536336,215.88,214.23,0.16972919]
[1693543085014,0.07536336,215.89,214.23,0.16972919]
[1693543085217,0.07536336,215.9,214.23,0.16972919]
[1693543085923,0.07536336,215.92,214.23,0.16972919]
[1693543086822,0.07536336,215.95,214.23,0.16972919]
[1693543087924,0.07536336,215.98,214.23,0.16972919]
[1693543089124,0.07536336,216.01,214.23,0.16972919]
[1693543089325,0.07536336,216.02,214.23,0.16972919]
[1693543089926,0.07536336,216.05,214.23,0.16972919]
[1693543090928,0.07536336,216.09,214.23,0.16972919]
[1693543091927,0.15072673,216.11,214.23,0.16972919]
[1693543091928,0.07536336,216.14,214.23,0.16972919]
[1693543092927,0.07536336,216.2,214.23,0.16972919]
[1693543093725,0.07536336,216.19,214.23,0.16972919]
[1693543101633,0.07536336,216.18,214.23,0.16972919]
[1693543109132,0.07536336,216.17,214.23,0.16972919]
[1693543118850,0.07536336,216.16,214.23,0.16972919]
[1693543129258,0.07536336,216.15,214.23,0.16972919]
[1693543156094,0.07536336,216.14,214.23,0.16972919]
[1693543196311,0.07536336,216.13,214.23,0.16972919]
[1693543196711,0.15072673,216.16,214.23,0.16972919]
[1693543196712,0.07536336,216.14,214.23,0.16972919]
[1693543197910,0.07536336,216.13,214.23,0.16972919]
[1693543198109,0.07536336,216.14,214.23,0.16972919]
[1693543203316,0.07536336,216.13,214.23,0.16972919]
[1693543203516,0.07536336,216.14,214.23,0.16972919]
[1693543203719,0.07536336,216.13,214.23,0.16972919]
[1693543217428,0.07536336,216.14,214.23,0.16972919]
[1693543222026,0.07536336,216.13,214.23,0.16972919]
[1693543222933,0.07536336,216.14,214.23,0.16972919]
[1693543225736,0.07536336,216.13,214.23,0.16972919]
[1693543254561,0.07536336,216.14,214.23,0.16972919]
[1693543257663,0.07536336,216.13,214.23,0.16972919]
[1693543268076,0.07536336,216.12,214.23,0.16972919]
[1693543268278,0.07188222,216.08,214.23,0.16972919]
[1693543268477,0.15072673,216.12,214.23,0.16972919]
[1693543269477,0.15072673,216.13,214.23,0.16972919]
[1693543270279,0.15072673,216.14,214.23,0.16972919]
[1693543272580,0.15072673,216.15,214.23,0.16972919]
[1693543280688,0.15072673,216.14,214.23,0.16972919]
[1693543283395,0.50242244,216.16,214.23,0.16972919]
[1693543283396,0.15072673,216.13,214.23,0.16972919]
[1693543285395,1.00484489,216.18,214.23,0.16972919]
[1693543285396,0.15072673,216.12,214.23,0.16972919]
[1693543288299,0.15072673,216.11,214.23,0.16972919]
[1693543288899,0.15072673,216.1,214.23,0.16972919]
[1693543291301,0.15072673,216.09,214.23,0.16972919]
[1693543292599,0.15072673,216.08,214.23,0.16972919]
[1693543294402,0.15072673,216.07,214.23,0.16972919]
[1693543296805,0.15072673,216.06,214.23,0.16972919]
[1693543298503,0.15072673,216.05,214.23,0.16972919]
[1693543300297,0.15072673,216.04,214.23,0.16972919]
[1693543301102,0.15072673,216.03,214.23,0.16972919]
[1693543302407,0.15072673,216.01,214.23,0.16972919]
[1693543303504,0.15072673,216.02,214.23,0.16972919]
[1693543305305,0.15072673,216.01,214.23,0.16972919]
[1693543305505,0.15072673,216.02,214.23,0.16972919]
[1693543310412,0.15072673,216.03,214.23,0.16972919]
[1693543312918,0.15072673,216.04,214.23,0.16972919]
[1693543314415,1.00484489,216.1,214.23,0.16972919]
[1693543314416,0.15072673,216.05,214.23,0.16972919]
[1693543316422,0.15072673,216.06,214.23,0.16972919]
[1693543317422,0.15072673,216.07,214.23,0.16972919]
[1693543318324,0.15072673,216.08,214.23,0.16972919]
[1693543330335,0.15072673,216.07,214.23,0.16972919]
[1693543359460,0.15072673,216.08,214.23,0.16972919]
[1693543360460,0.15072673,216.07,214.23,0.16972919]
[1693543363161,0.15072673,216.08,214.23,0.16972919]
[1693543371366,0.15072673,216.07,214.23,0.16972919]
[1693543388277,0.07540764,216.05,214.23,0.16972919]
[1693543396285,0.07540764,216.04,214.23,0.16972919]
[1693543397285,0.07540764,216.05,214.23,0.16972919]
[1693543417604,0.07540764,216.04,214.23,0.16972919]
[1693543422301,0.07540764,216.05,214.23,0.16972919]
[1693543422608,0.07540764,216.04,214.23,0.16972919]
[1693543422905,0.07540764,216.05,214.23,0.16972919]
[1693543480753,0.15072673,216.07,214.23,0.16972919]
[1693543480754,0.07540764,216.04,214.23,0.16972919]
[1693543480954,0.07540764,216.05,214.23,0.16972919]
[1693543485555,0.07540764,216.06,214.23,0.16972919]
[1693543486354,0.07540764,216.05,214.23,0.16972919]
[1693543486650,0.07540764,216.06,214.23,0.16972919]
[1693543502368,0.07540764,216.05,214.23,0.16972919]
[1693543510577,2.51211223,216.18,214.23,0.16972919]
[1693543510776,0.07545575,216.05,214.23,0.16972919]
[1693543520585,0.07545575,216.06,214.23,0.16972919]
[1693543520885,0.07545575,216.07,214.23,0.16972919]
[1693543521484,0.07545575,216.06,214.23,0.16972919]
[1693543537303,0.07545575,216.07,214.23,0.16972919]
[1693543548016,0.07545295,216.07,214.23,0.16972919]
[1693543554813,0.07545295,216.06,214.23,0.16972919]
[1693543555218,0.07545295,216.07,214.23,0.16972919]
[1693543555519,0.07545295,216.06,214.23,0.16972919]
[1693543558523,0.07545295,216.07,214.23,0.16972919]
[1693543563625,0.07545295,216.06,214.23,0.16972919]
[1693543565121,0.15090591,216.09,214.23,0.16972919]
[1693543565122,0.07545295,216.07,214.23,0.16972919]
[1693543570327,0.07545295,216.06,214.23,0.16972919]
[1693543607458,0.07545295,216.11,214.23,0.16972919]
[1693543607958,0.07545295,216.13,214.23,0.16972919]
[1693543608658,0.07545295,216.14,214.23,0.16972919]
[1693543609658,0.07545295,216.13,214.23,0.16972919]
[1693543609861,0.07545295,216.14,214.23,0.16972919]
[1693543613665,0.07545295,216.15,214.23,0.16972919]
[1693543617867,0.07545295,216.16,214.23,0.16972919]
[1693543632678,0.07545295,216.15,214.23,0.16972919]
[1693543635875,0.07545295,216.14,214.23,0.16972919]
[1693543638781,0.07545295,216.13,214.23,0.16972919]
[1693543640384,2.51509864,216.26,214.23,0.16972919]
[1693543640385,1.6886523,218.54,214.23,0.16972919]
[1693543640585,0.07545946,216.13,214.23,0.16972919]
[1693543640880,0.07545946,216.12,214.23,0.16972919]
[1693543641778,0.07545946,216.1,214.23,0.16972919]
[1693543651494,0.07545946,216.06,214.23,0.16972919]
[1693543651994,0.07545946,216.05,214.23,0.16972919]
[1693543652494,0.07545946,216.07,214.23,0.16972919]
[1693543653496,0.07545946,216.08,214.23,0.16972919]
[1693543655395,0.07545946,216.09,214.23,0.16972919]
[1693543657495,0.07545946,216.1,214.23,0.16972919]
[1693543661193,0.07545946,216.11,214.23,0.16972919]
[1693543664799,2.51531553,216.24,214.23,0.16972919]
[1693543665001,0.07529881,216.11,214.23,0.16972919]
[1693543666196,0.07529881,216.1,214.23,0.16972919]
[1693543669500,0.07529881,216.09,214.23,0.16972919]
[1693543672498,0.07529881,216.08,214.23,0.16972919]
[1693543675707,0.07529881,216.07,214.23,0.16972919]
[1693543679507,0.07529881,216.06,214.23,0.16972919]
[1693543682510,0.07529881,216.05,214.23,0.16972919]
[1693543683611,0.07529881,216.04,214.23,0.16972919]
[1693543685411,0.07529881,216.03,214.23,0.16972919]
[1693543686513,0.07529881,216.01,214.23,0.16972919]
[1693543689014,0.07529881,216.03,214.23,0.16972919]
[1693543689414,0.07529881,216.04,214.23,0.16972919]
[1693543689915,0.07529881,216.03,214.23,0.16972919]
[1693543690310,0.07529881,216.04,214.23,0.16972919]
[1693543692518,0.07529881,216.05,214.23,0.16972919]
[1693543695412,0.07529881,216.06,214.23,0.16972919]
[1693543697320,0.07529881,216.07,214.23,0.16972919]
[1693543697718,0.07529881,216.06,214.23,0.16972919]
[1693543698421,0.07529881,216.07,214.23,0.16972919]
[1693543699522,0.15059762,216.1,214.23,0.16972919]
[1693543699523,0.07529881,216.08,214.23,0.16972919]
[1693543711137,0.07529881,216.07,214.23,0.16972919]
[1693543721243,0.07529881,216.06,214.23,0.16972919]
[1693543738562,0.07529881,216.05,214.23,0.16972919]
[1693543781191,0.07529881,216.06,214.23,0.16972919]
[1693543785995,0.07529881,216.05,214.23,0.16972919]
[1693543811816,0.07529881,216.04,214.23,0.16972919]
[1693543812018,0.07529881,216.03,214.23,0.16972919]
[1693543812713,0.07529881,216.04,214.23,0.16972919]
[1693543838638,0.07529881,216.03,214.23,0.16972919]
[1693543845844,0.07529881,216.02,214.23,0.16972919]
[1693543846045,0.07529881,216.03,214.23,0.16972919]
[1693543847849,0.07529881,216.04,214.23,0.16972919]
[1693543848148,0.07529881,216.03,214.23,0.16972919]
[1693543849349,0.07529881,216.04,214.23,0.16972919]
[1693543872167,0.07529881,216.03,214.23,0.16972919]
[1693543872367,0.07529881,216.04,214.23,0.16972919]
[1693543873667,0.07529881,216.03,214.23,0.16972919]
[1693543908886,0.07529881,216.02,214.23,0.16972919]
[1693543913098,0.07529881,216.03,214.23,0.16972919]
[1693543924307,2.50996039,216.16,214.23,0.16972919]
[1693543924509,0.07555632,216.03,214.23,0.16972919]
[1693543941918,0.07555632,216.04,214.23,0.16972919]
[1693543943522,0.07555632,216.03,214.23,0.16972919]
[1693543944516,0.07555632,216.04,214.23,0.16972919]
[1693543948321,0.07555632,216.03,214.23,0.16972919]
[1693543952115,0.07555632,216.04,214.23,0.16972919]
[1693543961730,0.07555632,216.03,214.23,0.16972919]
[1693543994255,0.07555632,216.02,214.23,0.16972919]
[1693543995055,0.07555632,215.97,214.23,0.16972919]
[1693543995852,0.07555632,215.99,214.23,0.16972919]
[1693543996656,0.07555632,216.0,214.23,0.16972919]
[1693543996957,0.07555632,215.96,214.23,0.16972919]
[1693543997149,0.07555632,215.97,214.23,0.16972919]
[1693543997353,0.07555632,215.98,214.23,0.16972919]
[1693543997956,0.07555632,216.0,214.23,0.16972919]
[1693543998657,0.07555632,216.01,214.23,0.16972919]
[1693543998958,0.07555632,216.02,214.23,0.16972919]
[1693544000056,0.15111265,216.04,214.23,0.16972919]
[1693544000057,0.07555632,216.01,214.23,0.16972919]
[1693544000951,0.07555632,216.0,214.23,0.16972919]
[1693544001752,0.07555632,215.99,214.23,0.16972919]
[1693544002759,0.07555632,215.98,214.23,0.16972919]
[1693544004762,0.07555632,215.97,214.23,0.16972919]
[1693544006063,0.07555632,215.96,214.23,0.16972919]
[1693544007761,0.07555632,215.95,214.23,0.16972919]
[1693544009767,0.07555632,215.94,214.23,0.16972919]
[1693544011267,0.07555632,215.93,214.23,0.16972919]
[1693544013870,0.07555632,215.92,214.23,0.16972919]
[1693544014667,0.07555632,215.91,214.23,0.16972919]
[1693544017975,0.07555632,215.9,214.23,0.16972919]
[1693544019875,0.07555632,215.89,214.23,0.16972919]
[1693544021883,0.07555632,215.88,214.23,0.16972919]
[1693544023681,0.50370884,215.93,214.23,0.16972919]
[1693544023682,0.07555632,215.87,214.23,0.16972919]
[1693544025783,0.07555632,215.86,214.23,0.16972919]
[1693544026781,0.07555632,215.85,214.23,0.16972919]
[1693544027684,0.07555632,215.84,214.23,0.16972919]
[1693544028984,0.07555632,215.83,214.23,0.16972919]
[1693544029786,0.07555632,215.8,214.23,0.16972919]
[1693544035789,0.07555632,215.81,214.23,0.16972919]
[1693544037688,0.07555632,215.82,214.23,0.16972919]
[1693544038787,0.07555632,215.83,214.23,0.16972919]
[1693544042290,0.07555632,215.84,214.23,0.16972919]
[1693544043691,0.07555632,215.85,214.23,0.16972919]
[1693544044694,0.07555632,215.86,214.23,0.16972919]
[1693544045990,0.07555632,215.87,214.23,0.16972919]
[1693544046994,0.07555632,215.88,214.23,0.16972919]
[1693544047193,0.07555632,215.87,214.23,0.16972919]
[1693544047394,0.07555632,215.88,214.23,0.16972919]
[1693544047590,0.07555632,215.89,214.23,0.16972919]
[1693544048696,0.07555632,215.9,214.23,0.16972919]
[1693544049696,0.07555632,215.91,214.23,0.16972919]
[1693544049892,0.07555632,215.92,214.23,0.16972919]
[1693544050698,0.07555632,215.93,214.23,0.16972919]
[1693544051899,0.07555632,215.94,214.23,0.16972919]
[1693544141272,0.07555632,215.94,214.22,0.1222]
[1693544143971,0.07555632,215.94,214.23,0.17012985]
[1693544152480,0.07555632,215.93,214.23,0.17012985]
[1693544152680,0.07555632,215.94,214.23,0.17012985]
[1693544153077,0.07555632,215.93,214.23,0.17012985]
[1693544182997,0.07555632,215.94,214.23,0.17012985]
[1693544187400,0.07555632,215.93,214.23,0.17012985]
[1693544187601,0.07555632,215.94,214.23,0.17012985]
[1693544187802,0.07555632,215.93,214.23,0.17012985]
[1693544227925,0.07555632,215.94,214.23,0.17012985]
[1693544228322,0.07555632,215.93,214.23,0.17012985]
[1693544235829,0.07555632,215.94,214.23,0.17012985]
[1693544244436,0.07555632,215.93,214.23,0.17012985]
[1693544289674,0.07555632,215.92,214.23,0.17012985]
[1693544299984,0.07555632,215.86,214.23,0.17012985]
[1693544300384,0.07555632,215.88,214.23,0.17012985]
[1693544300685,0.07555632,215.87,214.23,0.17012985]
[1693544301283,0.07555632,215.88,214.23,0.17012985]
[1693544302389,0.07555632,215.89,214.23,0.17012985]
[1693544303189,0.07555632,215.9,214.23,0.17012985]
[1693544306293,0.07555632,215.89,214.23,0.17012985]
[1693544307194,0.07555632,215.88,214.23,0.17012985]
[1693544307392,0.07166305,215.8,214.23,0.17012985]
[1693544308191,0.15111265,215.8,214.23,0.17012985]
[1693544309301,0.50370884,215.82,214.23,0.17012985]
[1693544309302,0.15111265,215.78,214.23,0.17012985]
[1693544310305,0.15111265,215.76,214.23,0.17012985]
[1693544311502,0.15111265,215.74,214.23,0.17012985]
[1693544312198,0.15111265,215.73,214.23,0.17012985]
[1693544313404,0.15111265,215.71,214.23,0.17012985]
[1693544314305,0.15111265,215.7,214.23,0.17012985]
[1693544315206,0.15111265,215.69,214.23,0.17012985]
[1693544316310,0.15111265,215.68,214.23,0.17012985]
[1693544317110,0.15111265,215.67,214.23,0.17012985]
[1693544317407,0.15111265,215.66,214.23,0.17012985]
[1693544317610,0.15111265,215.73,214.23,0.17012985]
[1693544318411,3.52596194,215.87,214.23,0.17012985]
[1693544318711,0.14930744,215.73,214.23,0.17012985]
[1693544319410,0.14930744,215.72,214.23,0.17012985]
[1693544322415,0.14930744,215.71,214.23,0.17012985]
[1693544325416,0.14930744,215.7,214.23,0.17012985]
[1693544327723,0.14930744,215.69,214.23,0.17012985]
[1693544330320,0.14930744,215.68,214.23,0.17012985]
[1693544332324,0.49769147,215.7,214.23,0.17012985]
[1693544332325,0.14930744,215.67,214.23,0.17012985]
[1693544333324,0.14930744,215.66,214.23,0.17012985]
[1693544334227,0.14930744,215.65,214.23,0.17012985]
[1693544336229,0.14930744,215.66,214.23,0.17012985]
[1693544336529,0.14930744,215.65,214.23,0.17012985]
[1693544337023,0.14930744,215.66,214.23,0.17012985]
[1693544339825,0.14930744,215.67,214.23,0.17012985]
[1693544341632,0.14930744,215.66,214.23,0.17012985]
[1693544343336,0.14930744,215.67,214.23,0.17012985]
[1693544346039,0.14930744,215.68,214.23,0.17012985]
[1693544348243,0.14930744,215.69,214.23,0.17012985]
[1693544350248,0.14930744,215.68,214.23,0.17012985]
[1693544350446,0.14930744,215.69,214.23,0.17012985]
[1693544352347,0.14930744,215.68,214.23,0.17012985]
[1693544353347,0.14930744,215.69,214.23,0.17012985]
[1693544354250,0.14930744,215.7,214.23,0.17012985]
[1693544354845,0.14930744,215.71,214.23,0.17012985]
[1693544355453,0.14930744,215.72,214.23,0.17012985]
[1693544356251,0.14930744,215.74,214.23,0.17012985]
[1693544357455,0.14930744,215.75,214.23,0.17012985]
[1693544357849,0.14930744,215.76,214.23,0.17012985]
[1693544358455,0.14930744,215.78,214.23,0.17012985]
[1693544359348,0.14930744,215.8,214.23,0.17012985]
[1693544360355,0.14930744,215.81,214.23,0.17012985]
[1693544362757,0.14930744,215.82,214.23,0.17012985]
[1693544366256,0.14930744,215.83,214.23,0.17012985]
[1693544369063,0.14930744,215.84,214.23,0.17012985]
[1693544375466,0.14930744,215.85,214.23,0.17012985]
[1693544375666,0.49769147,215.87,214.23,0.17012985]
[1693544375667,0.14930744,215.84,214.23,0.17012985]
[1693544396675,0.14930744,215.85,214.23,0.17012985]